fUSD/lending_fUSD_20240213
["ID","MTS","AMOUNT","RATE_DAILY","PERIOD"]
[313937336,1707841833075,-194.7597,0.00027793,2]
[313937338,1707841833086,-72452.3306,0.00027793,2]
[313937340,1707841833095,-21402.9683,0.00027793,2]
[313937342,1707841833105,-7348.0536,0.00027793,2]
[313937344,1707841833114,-9130.7555,0.00027793,2]
[313937346,1707841833126,-173.21591665,0.00027794,2]
[313937347,1707841833136,-185.84276103,0.00027794,2]
[313937348,1707841833146,-177.27,0.00027848,2]
[313937349,1707841833156,-2205.26890925,0.0002786,2]
[313937350,1707841833166,-421.58259731,0.00027877,2]
[313937351,1707841833175,-160.88585139,0.00027883,2]
[313937352,1707841833184,-4594.83096539,0.00027891,2]
[313937353,1707841833194,-155.0,0.00027891,2]
[313937354,1707841833203,-155.0,0.00027891,2]
[313937355,1707841833213,-204.48055045,0.00027891,2]
[313937356,1707841833222,-167.51150578,0.00027891,2]
[313937357,1707841833231,-181.56713177,0.00027891,2]
[313937358,1707841833241,-215.91630318,0.00027891,2]
[313937359,1707841833250,-775.53574364,0.00027891,2]
[313937360,1707841833261,-191.91206468,0.00027891,2]
[313937361,1707841833272,-155.0,0.00027891,2]
[313937362,1707841833282,-212.87694586,0.00027891,2]
[313937363,1707841833291,-155.0,0.00027891,2]
[313937364,1707841833302,-738.76743162,0.00027892,2]
[313937365,1707841833313,-243462.58840347,0.00027893,2]
[313937366,1707841833322,-149846.87561708,0.00027894,2]
[313937367,1707841833368,-274.59638752,0.00027894,2]
[313937368,1707841833382,-371.6195954,0.00027894,2]
[313937369,1707841833391,-500.0,0.00027894,2]
[313937370,1707841833401,-173.21591661,0.0002792,2]
[313937371,1707841833411,-152.70835114,0.00028,2]
[313937372,1707841833425,-1378.18547305,0.00028,2]
[313937373,1707841833437,-383.14260203,0.00028,2]
[313937374,1707841833454,-384.86813329,0.00028,2]
[313937375,1707841833468,-303.77486671,0.00028,2]
[313937376,1707841833480,-700.0,0.00028,2]
[313937377,1707841833526,-8757.53250473,0.00028,2]
[313937378,1707841833536,-8652.16837856,0.00028,30]
[313937396,1707841838707,-301.98919497,0.00023122,2]
[313937397,1707841838718,-155.11,0.0002558,2]
[313937398,1707841838728,-155.11,0.00026024,2]
[313937399,1707841838738,-155.11,0.00026468,2]
[313937400,1707841838748,-155.11,0.00026913,2]
[313937401,1707841838761,-157.3764,0.00027693,2]
[313937402,1707841838771,-2715.00185299,0.00028,30]
[313937403,1707841838786,-1137.43979245,0.00028,30]
[313937404,1707841838796,-173.21591661,0.00028045,2]
[313937405,1707841838806,-483.22,0.00028083,2]
[313937406,1707841838817,-434.74,0.00028101,2]
[313937407,1707841838827,-166.39720002,0.00028152,2]
[313937408,1707841838838,-173.21591661,0.00028171,2]
[313937409,1707841838847,-1050.50717431,0.00028194,3]
[313937410,1707841838874,-949.49282569,0.00028194,3]
[313937411,1707841838883,-588.15595096,0.00028194,2]
[313937412,1707841838892,-1755.79712365,0.00028195,2]
[313937413,1707841838903,-167.81005821,0.00028195,2]
[313937414,1707841838914,-165.45540104,0.000282,2]
[313937415,1707841838924,-160.75846967,0.000282,2]
[313937416,1707841838934,-227.87942827,0.000282,2]
[313937417,1707841838943,-1517.17559925,0.000282,2]
[313937418,1707841838953,-281.54314286,0.00028293,2]
[313937419,1707841838964,-944.1829586,0.00028293,2]
[313937420,1707841838974,-948.48367867,0.00028294,3]
[313937421,1707841838983,-336.51684021,0.00028294,2]
[313937422,1707841838994,-28353.51762441,0.00028294,2]
[313937423,1707841839005,-333292.24994274,0.00028294,2]
[313937424,1707841839016,-2000.0,0.00028295,2]
[313937425,1707841839032,-200.0,0.00028295,2]
[313937426,1707841839042,-2000.0,0.00028295,2]
[313937427,1707841839052,-200.0,0.00028295,2]
[313937428,1707841839061,-5510.34702963,0.00028296,2]
[313937429,1707841839071,-215.78051772,0.00028296,14]
[313937430,1707841839080,-173.21591661,0.00028296,2]
[313937431,1707841839090,-1672.78215049,0.00028297,2]
[313937432,1707841839099,-234.6196376,0.00028298,2]
[313937433,1707841839108,-296.47072073,0.00028298,2]
[313937434,1707841839117,-199.98123495,0.00028298,2]
[313937435,1707841839126,-865.05362855,0.00028298,2]
[313937436,1707841839136,-200.45944243,0.00028298,2]
[313937437,1707841839145,-155.0,0.00028298,2]
[313937438,1707841839155,-201.57387579,0.00028298,2]
[313937439,1707841839164,-3256.80191151,0.00028298,2]
[313937440,1707841839176,-487.99435337,0.00028298,2]
[313937441,1707841839185,-359.42852453,0.00028298,2]
[313937442,1707841839195,-1170.05691146,0.00028299,2]
[313937443,1707841839204,-300.0,0.00028299,2]
[313937444,1707841839213,-300.0,0.00028299,2]
[313937445,1707841839222,-300.0,0.00028299,2]
[313937446,1707841839231,-217.49725874,0.00028299,2]
[313937447,1707841839240,-289961.70612252,0.000283,3]
[313937451,1707841840937,-927.04345561,0.000283,3]
[313937452,1707841840952,-1629.98094198,0.000283,3]
[313937453,1707841840965,-1411.2,0.000283,3]
[313937454,1707841840978,-1459.90539382,0.000283,3]
[313937455,1707841840994,-331.50849412,0.000283,3]
[313937456,1707841841006,-1006.632,0.000283,3]
[313937457,1707841841023,-660.00660538,0.000283,3]
[313937458,1707841841036,-976.63260008,0.000283,3]
[313937459,1707841841047,-480.41952877,0.000283,3]
[313937460,1707841841065,-339.71755257,0.00027999,2]
[313937461,1707841841075,-4910.02468899,0.000283,3]
[313937469,1707841843131,-261.20740967,0.00027791,2]
[313937470,1707841843249,-403.25189576,0.00027791,2]
[313937471,1707841843364,-321.30619314,0.00027791,2]
[313937472,1707841843373,-203.31012739,0.00027998,2]
[313937473,1707841843383,-248.08555624,0.00027998,2]
[313937474,1707841843392,-156.30052842,0.00027998,2]
[313937475,1707841843402,-559.56904296,0.00027999,2]
[313937476,1707841843411,-60.90261476,0.00028101,2]
[313937477,1707841843423,-439.08738524,0.00028101,2]
[313937478,1707841843433,-407.44978023,0.000283,3]
[313937479,1707841843455,-9049.04286495,0.000283,3]
[313937480,1707841843466,-4578.52759439,0.000283,3]
[313937481,1707841843477,-1517.29144119,0.000283,3]
[313937483,1707841843511,-5352.16435569,0.000283,3]
[313937484,1707841843524,-2532.65786698,0.000283,3]
[313937485,1707841843536,-5001.35999951,0.000283,3]
[313937486,1707841843548,-10004.64924912,0.000283,3]
[313937491,1707841846096,-336.29920953,0.00027997,2]
[313937492,1707841846106,-173.89138771,0.00027997,2]
[313937493,1707841846115,-1249.53942068,0.00027997,2]
[313937494,1707841846335,-612.98138751,0.00027997,2]
[313937495,1707841846346,-1505.46120007,0.00027997,2]
[313937496,1707841846359,-2037.86469083,0.00027997,2]
[313937497,1707841846397,-268.98826648,0.00027997,2]
[313937498,1707841846479,-3711.03827113,0.00027997,2]
[313937499,1707841846490,-203.46643608,0.00027997,2]
[313937500,1707841846499,-260.58052071,0.00027998,2]
[313937501,1707841846509,-413.3917858,0.00027998,2]
[313937503,1707841846519,-201.31214824,0.00027998,2]
[313937504,1707841846529,-514.71727457,0.00027998,2]
[313937505,1707841846539,-251.70510413,0.00027998,2]
[313937506,1707841846549,-228.48089945,0.00027998,2]
[313937507,1707841846558,-439.59131871,0.000283,3]
[313937508,1707841846571,-7213.90806328,0.000283,3]
[313937509,1707841846584,-686.99999978,0.000283,3]
[313937510,1707841846596,-519.99999936,0.000283,3]
[313937519,1707841846823,-256.25912178,0.00027997,2]
[313937520,1707841846833,-33314.58763578,0.000283,3]
[313937521,1707841846845,-38456.55600366,0.000283,3]
[313937522,1707841846856,-350420.80563851,0.000283,3]
[313937523,1707841846868,-1700.23043579,0.000283,3]
[313937524,1707841846885,-599.27979208,0.00028299,2]
[313937525,1707842397455,161.10074737,0.00022997,2]
[313937527,1707842501792,66.89925263,0.00023,2]
[313937528,1707842501816,228.0,0.00023,2]
[313937529,1707842501841,228.0,0.00023,2]
[313937530,1707842501866,140.65195068,0.00023,2]
[313937531,1707842721229,87.34804932,0.00023061,2]
[313937532,1707842725802,632.41279222,0.0002306,2]
[313937533,1707842726788,497.50083264,0.0002306,2]
[313937534,1707842729182,5547.22996271,0.0002306,2]
[313937535,1707842731756,526.97854074,0.0002306,2]
[313937536,1707842733502,1056.34011043,0.0002306,2]
[313937537,1707842734756,626.44937518,0.0002306,2]
[313937538,1707842737833,6474.95492372,0.0002306,2]
[313937539,1707842740146,526.77053518,0.0002306,2]
[313937540,1707842744464,229.63290443,0.0002306,2]
[313937541,1707842746294,316.00060763,0.0002306,2]
[313937542,1707842750037,514.71727457,0.0002306,2]
[313937543,1707842750468,1047.16156624,0.0002306,2]
[313937544,1707842755674,301.98919497,0.0002306,2]
[313937545,1707842759712,3347.99076956,0.0002306,2]
[313937546,1707842761458,-2245.30470589,0.00023061,2]
[313937547,1707842761489,-504.20181444,0.00023062,2]
[313937548,1707842761514,-2245.30470589,0.00023062,2]
[313937549,1707842761529,-504.20181444,0.00023062,2]
[313937550,1707842761546,-14500.98695934,0.00023062,2]
[313937551,1707842837408,10585.13536687,0.0002306,2]
[313937552,1707842867665,1583.07814905,0.00023,2]
[313937553,1707842876463,675119.44942975,0.0002306,2]
[313937554,1707842882448,150.0,0.0002306,2]
[313937555,1707842887561,5438.0,0.0002306,2]
[313937556,1707842936029,-216.81499801,0.00023061,2]
[313937557,1707842936052,-12683.18500199,0.00023061,2]
[313937560,1707843010693,33533.40049556,0.0002306,2]
[313937561,1707843018072,514.71727457,0.0002306,2]
[313937562,1707843023246,2332.65275521,0.0002306,2]
[313937583,1707843032240,-313.12930109,0.00023061,2]
[313937585,1707843032254,-22001.03297241,0.00023061,2]
[313937587,1707843032264,-2472.52967276,0.00023066,2]
[313937588,1707843032274,-1820.84263717,0.00023119,2]
[313937589,1707843032285,-601.90345894,0.00023232,2]
[313937590,1707843032295,-155.0,0.00023232,2]
[313937591,1707843032306,-623.78,0.00023308,2]
[313937592,1707843032315,-19248.33299721,0.000246,2]
[313937593,1707843032325,-161.10074737,0.00024743,2]
[313937594,1707843032336,-211.0,0.00024913,2]
[313937595,1707843032345,-2184.34,0.0002499,2]
[313937596,1707843032354,-350.0,0.00025,3]
[313937597,1707843032364,-174.8,0.00025077,2]
[313937598,1707843032374,-288.0,0.00025108,2]
[313937599,1707843032384,-232.08,0.00025108,2]
[313937600,1707843032394,-200.0,0.00025108,2]
[313937601,1707843032407,-224.37,0.00025136,2]
[313937602,1707843032417,-500.0,0.00025148,2]
[313937603,1707843032427,-7497.44,0.00025148,2]
[313937604,1707843032437,-23900.0,0.00025151,2]
[313937605,1707843032447,-9158.26,0.00025156,2]
[313937606,1707843032457,-170.5,0.00025179,2]
[313937607,1707843032466,-2045.5,0.00025181,2]
[313937608,1707843032476,-250.0,0.00025191,2]
[313937609,1707843032485,-200.0,0.00025192,2]
[313937610,1707843032494,-922.08,0.00025198,2]
[313937611,1707843032504,-620.89,0.00025201,2]
[313937612,1707843032514,-250.0,0.00025215,2]
[313937613,1707843032524,-200.0,0.00025215,2]
[313937614,1707843032534,-165.79,0.00025217,2]
[313937615,1707843032543,-500.0,0.0002522,2]
[313937616,1707843032553,-285.58,0.00025232,2]
[313937617,1707843032563,-150.0,0.00025235,2]
[313937618,1707843032572,-13477.9,0.00025252,2]
[313937619,1707843032582,-200.0,0.00025263,2]
[313937620,1707843032592,-2000.0,0.00025272,2]
[313937621,1707843032601,-194.89,0.00025293,2]
[313937622,1707843032610,-242.7,0.00025308,2]
[313937623,1707843032619,-210.0,0.00025366,2]
[313937624,1707843032629,-155.1,0.00025434,2]
[313937625,1707843032638,-216.81499801,0.00025466,2]
[313937626,1707843032648,-4424.4159456,0.00025467,2]
[313937627,1707843032659,-222.61600932,0.00025468,2]
[313937628,1707843032668,-623.78,0.00025572,2]
[313937629,1707843032677,-712.0,0.000257,2]
[313937631,1707843032687,-155.1,0.00025875,2]
[313937633,1707843032697,-3143.38051339,0.00026305,2]
[313937635,1707843032706,-155.1,0.00026317,2]
[313937637,1707843032716,-161.10074737,0.0002649,2]
[313937639,1707843032728,-285.58,0.00026494,2]
[313937641,1707843032738,-155.1,0.00026759,2]
[313937643,1707843032748,-922.08,0.00026842,2]
[313937645,1707843032758,-954.0,0.00026888,2]
[313937647,1707843032767,-361.327,0.000269,2]
[313937649,1707843032777,-731.41,0.00026915,2]
[313937651,1707843032787,-10554.80601519,0.00027,2]
[313937653,1707843032797,-400.0,0.00027,3]
[313937655,1707843032808,-151.83299161,0.000273,2]
[313937657,1707843032818,-235.89308219,0.000273,2]
[313937659,1707843032827,-177.27,0.000273,2]
[313937661,1707843032837,-500.0,0.000273,2]
[313937663,1707843032846,-6809.63339286,0.00027383,2]
[313937665,1707843032856,-417.1433,0.00027391,2]
[313937667,1707843032866,-248.17784,0.00027412,2]
[313937669,1707843032876,-229.36395073,0.00027412,2]
[313937671,1707843032885,-623.29853772,0.00027483,4]
[313937673,1707843032895,-185.20175191,0.00027483,4]
[313937675,1707843032906,-1719.57096095,0.00027483,4]
[313937677,1707843032916,-729.81472571,0.00027483,4]
[313937679,1707843032925,-312.31244973,0.00027486,4]
[313937681,1707843032935,-156.15622487,0.00027486,4]
[313937683,1707843032945,-156.15622486,0.00027486,4]
[313937685,1707843032954,-2093.01965206,0.00027589,2]
[313937687,1707843032963,-596.1628865,0.00027589,2]
[313937689,1707843032973,-6956.2157,0.00027591,2]
[313937691,1707843032982,-4230.2036,0.00027591,2]
[313937693,1707843032992,-3507.92735878,0.00027591,3]
[313937695,1707843033002,-1000.0,0.00027593,2]
[313937697,1707843033011,-211.0,0.00027612,6]
[313937699,1707843033020,-372.63,0.00027677,2]
[313937701,1707843033030,-350.0,0.00027689,2]
[313937703,1707843033040,-1144.3136426,0.00027689,2]
[313937705,1707843033049,-247.40585287,0.00027689,2]
[313937707,1707843033058,-156.29752339,0.00027689,2]
[313937709,1707843033068,-3159.10290502,0.00027689,2]
[313937711,1707843033077,-156.72934825,0.00027689,2]
[313937713,1707843033087,-1872.17672382,0.00027689,2]
[313937715,1707843033097,-231.02997375,0.00027689,2]
[313937717,1707843033106,-155.20561077,0.00027689,2]
[313937719,1707843033116,-213.20006558,0.00027689,2]
[313937721,1707843033126,-161.05937526,0.00027689,2]
[313937723,1707843033136,-245.51882424,0.00027689,2]
[313937725,1707843033146,-525.46610018,0.00027689,2]
[313937727,1707843033157,-169.44597238,0.00027689,2]
[313937729,1707843033166,-155.40634064,0.00027689,2]
[313937731,1707843033176,-699.73561086,0.00027689,2]
[313937732,1707843033185,-1519.40283713,0.00027689,2]
[313937733,1707843033195,-303.21274241,0.00027689,2]
[313937734,1707843033205,-155.0,0.00027689,2]
[313937735,1707843033214,-203.50750251,0.00027689,2]
[313937736,1707843033224,-376.66029606,0.00027689,2]
[313937737,1707843033234,-200.0,0.00027689,2]
[313937738,1707843033243,-157.50481465,0.00027689,2]
[313937739,1707843033253,-457.04035085,0.00027689,2]
[313937740,1707843033262,-2451.5778473,0.00027689,2]
[313937741,1707843033272,-670.9835315,0.00027689,2]
[313937742,1707843033282,-2157.62700648,0.00027689,2]
[313937743,1707843033292,-497.48141427,0.00027689,2]
[313937744,1707843033302,-469.3204275,0.00027689,2]
[313937745,1707843033311,-470.83739789,0.00027689,2]
[313937746,1707843033321,-230.06869307,0.00027689,2]
[313937747,1707843033330,-313.53004214,0.00027689,2]
[313937748,1707843033340,-1046.50244334,0.00027689,2]
[313937749,1707843033349,-301.74585389,0.00027689,2]
[313937750,1707843033358,-3336.5713161,0.00027689,2]
[313937751,1707843033367,-504.03645429,0.00027689,2]
[313937752,1707843033377,-7010.27037205,0.00027689,2]
[313937753,1707843033387,-290.7152374,0.00027689,2]
[313937754,1707843033396,-266.46430983,0.00027689,2]
[313937755,1707843033409,-1634.54335949,0.00027689,2]
[313937756,1707843033418,-155.86909284,0.00027689,2]
[313937757,1707843033427,-155.49774992,0.00027689,2]
[313937758,1707843033438,-2792.19097905,0.00027689,2]
[313937759,1707843033447,-9324.68748897,0.00027689,2]
[313937760,1707843033457,-491.35943145,0.00027689,2]
[313937761,1707843033467,-518.01679133,0.0002769,2]
[313937762,1707843033477,-4332.73146928,0.0002769,2]
[313937763,1707843033486,-100000.0,0.00027691,2]
[313937764,1707843033495,-4619.44807386,0.00027691,2]
[313937765,1707843033779,-58150.29005939,0.00027691,2]
[313937766,1707843033818,-302.6740637,0.00027691,2]
[313937767,1707843033829,-24747.47156952,0.00027691,2]
[313937768,1707843033847,-992.45391194,0.00027691,2]
[313937769,1707843033858,-3082.14472906,0.00027691,2]
[313937770,1707843033869,-3210.2060775,0.00027691,2]
[313937771,1707843033889,-149895.31151503,0.00027691,2]
[313937772,1707843033898,-25875.0963,0.00027693,2]
[313937773,1707843033910,-500.0,0.00027693,2]
[313937774,1707843033918,-155.73119273,0.00027738,2]
[313937775,1707843033927,-280.158322,0.00027738,2]
[313937776,1707843033936,-285.58,0.00027756,2]
[313937777,1707843033945,-623.78,0.00027836,2]
[313937778,1707843033955,-177.27,0.00027848,2]
[313937779,1707843033965,-1000.0,0.000279,2]
[313937780,1707843033975,-563.39665891,0.00027972,2]
[313937781,1707843033986,-378.36455149,0.00027972,2]
[313937782,1707843033996,-157.07734709,0.00027996,2]
[313937783,1707843034005,-288.10515116,0.00027997,2]
[313937784,1707843034015,-289.8795039,0.00027997,2]
[313937785,1707843034025,-534.31790056,0.00027997,2]
[313937786,1707843034034,-289.59209792,0.00027997,2]
[313937787,1707843034042,-547.4004666,0.00027997,2]
[313937788,1707843034052,-486.25881961,0.00027997,2]
[313937789,1707843034062,-7174.36729539,0.00027997,5]
[313937790,1707843034071,-1500.14,0.00028,2]
[313937791,1707843034079,-180.93154071,0.00028018,2]
[313937792,1707843034088,-234.53774303,0.00028018,2]
[313937793,1707843034097,-775.71083041,0.00028018,2]
[313937794,1707843034106,-261.82623265,0.00028018,2]
[313937795,1707843034115,-38265.96609753,0.00028018,2]
[313937796,1707843034124,-142660.17652464,0.0002802,2]
[313937797,1707843034134,-150.0,0.00028072,2]
[313937798,1707843034143,-378.36455148,0.00028086,2]
[313937799,1707843034152,-1221.503449,0.000281,2]
[313937800,1707843034163,-150.0,0.00028191,2]
[313937801,1707843034172,-2065.8475,0.00028194,2]
[313937802,1707843034181,-5000.0,0.000282,2]
[313937803,1707843034190,-724.403,0.000282,3]
[313937804,1707843034199,-2075.15982786,0.000282,2]
[313937805,1707843034208,-167.8100582,0.000282,2]
[313937806,1707843034217,-50000.0,0.000282,2]
[313937807,1707843034227,-220.6072014,0.000282,2]
[313937808,1707843034236,-1238.19860136,0.000282,2]
[313937809,1707843034245,-249.97475915,0.000282,2]
[313937810,1707843034254,-1565.69560709,0.000282,2]
[313937811,1707843034263,-378.36455148,0.000282,2]
[313937812,1707843034273,-372.91686578,0.000282,2]
[313937813,1707843034282,-1523.62163612,0.000282,2]
[313937814,1707843034291,-215.11689133,0.00028216,14]
[313937815,1707843034300,-161.10074737,0.00028236,2]
[313937816,1707843034309,-288.0,0.00028246,2]
[313937817,1707843034319,-563.3966589,0.00028295,2]
[313937818,1707843034328,-186.33802112,0.00028296,2]
[313937819,1707843034337,-5762.3570758,0.00028297,2]
[313937820,1707843034346,-178.72127769,0.00028298,2]
[313937821,1707843034355,-8733.75664874,0.00028298,2]
[313937822,1707843034364,-404.5107215,0.00028298,2]
[313937823,1707843034374,-329.56924662,0.00028298,2]
[313937824,1707843034383,-738.29623454,0.00028298,2]
[313937825,1707843034394,-197.1837572,0.00028298,2]
[313937826,1707843034403,-159.36632658,0.00028298,2]
[313937827,1707843034415,-155.0,0.00028298,2]
[313937828,1707843034425,-157.80323585,0.00028298,2]
[313937829,1707843034434,-286.79931458,0.00028298,2]
[313937830,1707843034443,-284.38164498,0.00028298,2]
[313937831,1707843034453,-295.7849873,0.00028298,2]
[313937832,1707843034463,-212.96188479,0.00028298,2]
[313937833,1707843034472,-1050.85386154,0.00028298,2]
[313937834,1707843034481,-1373.21911106,0.00028298,2]
[313937835,1707843034490,-1180.65689555,0.00028298,2]
[313937836,1707843034499,-200.59320511,0.00028298,2]
[313937837,1707843034509,-7434.88534733,0.00028298,2]
[313937838,1707843034518,-1955.00866433,0.00028298,2]
[313937839,1707843034527,-150.01,0.00028298,2]
[313937840,1707843034536,-3314.82130757,0.00028298,2]
[313937841,1707843034545,-630.77752387,0.00028299,2]
[313937842,1707843034555,-300.0,0.00028299,2]
[313937843,1707843034564,-300.0,0.00028299,2]
[313937844,1707843034573,-300.0,0.00028299,2]
[313937845,1707843034583,-300.0,0.00028299,2]
[313937846,1707843034591,-300.0,0.00028299,2]
[313937847,1707843034600,-500.0,0.00028299,2]
[313937848,1707843034610,-155.36118022,0.00028299,2]
[313937849,1707843034620,-500.0,0.00028299,2]
[313937850,1707843034629,-500.0,0.00028299,2]
[313937851,1707843034639,-500.0,0.00028299,2]
[313937852,1707843034820,-500.0,0.00028299,2]
[313937853,1707843034830,-570.18722922,0.00028299,2]
[313937854,1707843034839,-253.6322494,0.00028299,2]
[313937855,1707843034848,-500.0,0.00028299,2]
[313937856,1707843034858,-500.0,0.00028299,2]
[313937857,1707843034867,-500.0,0.00028299,2]
[313937858,1707843034877,-1061025.95335112,0.000283,3]
[313937859,1707843034891,-632.83725849,0.000283,3]
[313937860,1707843034908,-3219.43265722,0.000283,3]
[313937861,1707843034920,-2435.0,0.000283,3]
[313937862,1707843034950,-10219.29347967,0.000283,3]
[313937863,1707843034965,-7382.376725,0.000283,3]
[313937864,1707843034980,-2242.77160239,0.000283,3]
[313937865,1707843034994,-3710.71199057,0.000283,3]
[313937882,1707843038628,-334.99786902,0.00028298,2]
[313937884,1707843038638,-150.01,0.00028298,2]
[313937885,1707843038647,-752.07013098,0.00028298,2]
[313937886,1707843038658,-2562.75117659,0.00028298,2]
[313937887,1707843038670,-9165.16262996,0.000283,3]
[313937888,1707843038682,-14443.10929325,0.000283,3]
[313937889,1707843038693,-24346.82250001,0.000283,3]
[313937890,1707843038752,-1046.95585243,0.000283,3]
[313937892,1707843038763,-747.39715987,0.000283,3]
[313937894,1707843038780,-456.35152185,0.000283,3]
[313937895,1707843038791,-17624.77236793,0.000283,3]
[313937896,1707843038802,-31148.22763195,0.000283,2]
[313937900,1707843040849,-500.0,0.00027589,2]
[313937901,1707843040858,-1268.45637484,0.000283,2]
[313937902,1707843042641,-524.33667465,0.00028297,2]
[313937903,1707843042652,-150.01,0.00028298,2]
[313937904,1707843042661,-3327.03736574,0.000283,2]
[313937905,1707843042712,-303.499784,0.000283,2]
[313937911,1707843043377,-3314.82130757,0.00028298,2]
[313937912,1707843043387,-2615.43286872,0.000283,2]
[313937913,1707843043398,-5962.71800518,0.000283,2]
[313937914,1707843043599,-32094.96141152,0.000283,2]
[313937915,1707843046250,-500.0,0.00027961,2]
[313937916,1707843046259,-148.91636192,0.00028299,2]
[313937917,1707843046303,-76.07117758,0.00028299,2]
[313937918,1707843046313,-831.15949864,0.000283,2]
[313937919,1707843046433,-298349.39331231,0.000283,2]
[313937920,1707843046544,-138655.27533511,0.000283,2]
[313937921,1707843046557,-359.00939672,0.000283,2]
[313937922,1707843046568,-1303.12237507,0.000283,2]
[313937923,1707843046591,-86987.81358954,0.000283,2]
[313937924,1707843046625,-250.43848921,0.000283,2]
[313937926,1707843069686,719270.92176941,0.00023,2]
[313937927,1707843069750,125884.16582781,0.00023,2]
[313937929,1707843231991,692115.83417219,0.00023,2]
[313937930,1707843232018,489207.51425452,0.00023,2]
[313937931,1707843232041,4509102.30284824,0.00023,2]
[313937932,1707843294834,153.92,0.00025223,120]
[313937933,1707843723930,3733.9614,0.00023025,14]
[313937934,1707843723966,210.0,0.00022913,2]
[313937936,1707843770768,-269.43976562,0.00023061,2]
[313937937,1707843770791,-290.58241428,0.00023109,2]
[313937938,1707843770812,-1408.83148395,0.0002311,2]
[313937939,1707843770834,-31.14633615,0.0002311,2]
[313937940,1707843772276,-914.59450468,0.0002311,2]
[313937941,1707843772298,-1085.40549532,0.0002311,2]
[313937942,1707843772991,-1710.74280182,0.0002311,2]
[313937943,1707843773013,-289.25719818,0.00023111,2]
[313937944,1707843773602,-214.94461626,0.00023111,2]
[313937945,1707843773623,-216.29960539,0.00023112,2]
[313937946,1707843773644,-500.0,0.00023113,2]
[313937947,1707843773664,-300.0,0.00023122,2]
[313937948,1707843773685,-150.0,0.00023122,2]
[313937949,1707843773707,-150.0,0.00023122,2]
[313937950,1707843773729,-468.75577835,0.00023139,2]
[313937951,1707843776887,-87.73422165,0.00023139,2]
[313937952,1707843776910,-296.52117561,0.000241,2]
[313937953,1707843776933,-175.79875916,0.000243,2]
[313937954,1707843776953,-351.59751728,0.00024301,2]
[313937955,1707843776978,-1088.3483263,0.000246,2]
[313937956,1707843786400,-1478.41,0.000246,2]
[313937959,1707843816727,-718.33,0.00024123,2]
[313937960,1707843816750,-738.11,0.00024123,2]
[313937961,1707843816772,-543.56,0.000246,2]
[313937962,1707843817654,-2000.0,0.000246,2]
[313937963,1707843819401,-2000.0,0.000246,2]
[313937964,1707843820504,-2000.0,0.000246,2]
[313937965,1707843821408,-2000.0,0.000246,2]
[313937966,1707843825716,-1000.0,0.000246,2]
[313937967,1707843832499,-1169.8,0.000246,2]
[313937968,1707843912420,555.61,0.00022482,2]
[313937975,1707844023923,205.0,0.00022913,2]
[313938014,1707844127836,1541.0,0.0002,2]
[313938041,1707844231479,-290.58241428,0.00023619,2]
[313938042,1707844231489,-712.63,0.0002362,2]
[313938043,1707844231498,-200.0,0.0002362,2]
[313938044,1707844231507,-1.80886597,0.0002362,2]
[313938045,1707844231519,-1439.96113403,0.0002362,2]
[313938046,1707844231528,-139.19150149,0.0002362,2]
[313938047,1707844231540,-594.51849851,0.0002362,2]
[313938048,1707844231550,-715.51,0.0002362,2]
[313938049,1707844231559,-720.45,0.00023689,2]
[313938050,1707844231568,-500.0,0.0002369,2]
[313938051,1707844231576,-707.11476506,0.00023752,2]
[313938052,1707844231588,-15.92523494,0.00023752,2]
[313938053,1707844231597,-736.0,0.00023858,2]
[313938054,1707844231606,-712.22,0.00023859,2]
[313938055,1707844231615,-719.6,0.00023859,2]
[313938056,1707844231623,-9978.01979663,0.00023859,2]
[313938059,1707844237504,-363.61901928,0.00023859,2]
[313938060,1707844237516,-1296.64059987,0.00023859,2]
[313938061,1707844237528,-12261.72058422,0.00023859,2]